fUSD/lending_fUSD_20251225
["ID","MTS","AMOUNT","RATE_DAILY","PERIOD"]
[399816728,1766699436379,-250.0,0.00016149,2]
[399816729,1766699436389,-267.46074303,0.00016149,2]
[399816730,1766699436399,-250.0,0.00016149,2]
[399816731,1766699436408,-277.35679052,0.00016149,2]
[399816732,1766699436418,-30000.0,0.0001615,2]
[399816733,1766699436427,-150.0,0.00016153,2]
[399816734,1766699436438,-150.0,0.0001616,2]
[399816735,1766699436449,-158.32,0.00016161,2]
[399816736,1766699436459,-150.0,0.00016182,2]
[399816737,1766699436469,-575.79192848,0.00016183,2]
[399816738,1766699436479,-500.0,0.00016183,2]
[399816739,1766699436489,-500.0,0.00016183,2]
[399816740,1766699436499,-500.0,0.00016183,2]
[399816741,1766699436508,-500.0,0.00016183,2]
[399816742,1766699436518,-310.71387342,0.00016183,2]
[399816743,1766699436529,-500.0,0.00016183,2]
[399816744,1766699436538,-500.0,0.00016183,2]
[399816745,1766699436548,-479.05040621,0.00016183,2]
[399816746,1766699436558,-500.0,0.00016183,2]
[399816747,1766699436569,-500.0,0.00016183,2]
[399816748,1766699436579,-500.0,0.00016183,2]
[399816749,1766699436588,-500.0,0.00016183,2]
[399816750,1766699436598,-500.0,0.00016183,2]
[399816751,1766699436607,-500.0,0.00016183,2]
[399816752,1766699436617,-500.0,0.00016183,2]
[399816753,1766699436627,-500.0,0.00016183,2]
[399816754,1766699436637,-500.0,0.00016183,2]
[399816755,1766699436648,-500.0,0.00016183,2]
[399816756,1766699436658,-160.27588239,0.00016183,2]
[399816757,1766699436667,-509.7886489,0.00016183,2]
[399816758,1766699436677,-500.0,0.00016183,2]
[399816759,1766699436687,-500.0,0.00016183,2]
[399816760,1766699436696,-500.0,0.00016183,2]
[399816761,1766699436706,-511.36256137,0.00016183,2]
[399816762,1766699436716,-500.0,0.00016183,2]
[399816763,1766699436725,-163.80128697,0.00016183,2]
[399816764,1766699436735,-500.0,0.00016183,2]
[399816765,1766699436745,-307.46227328,0.00016183,2]
[399816766,1766699436755,-161.71749088,0.00016183,2]
[399816767,1766699436765,-165.66029733,0.00016183,2]
[399816768,1766699436775,-500.0,0.00016183,2]
[399816769,1766699436786,-500.0,0.00016183,2]
[399816770,1766699436796,-551.71631931,0.00016183,2]
[399816771,1766699436806,-500.0,0.00016183,2]
[399816772,1766699436815,-374.62630922,0.00016183,2]
[399816773,1766699436825,-500.0,0.00016183,2]
[399816774,1766699436835,-500.0,0.00016183,2]
[399816775,1766699436844,-160.28200119,0.00016183,2]
[399816776,1766699436855,-160.2827953,0.00016183,2]
[399816777,1766699436864,-160.286897,0.00016183,2]
[399816778,1766699436874,-160.28109585,0.00016183,2]
[399816779,1766699436883,-500.0,0.00016183,2]
[399816780,1766699436893,-168.21782,0.00016183,2]
[399816781,1766699436903,-282.75737682,0.00016183,2]
[399816782,1766699436912,-500.67181276,0.00016183,2]
[399816783,1766699436922,-500.0,0.00016183,2]
[399816784,1766699436931,-500.0,0.00016183,2]
[399816785,1766699436941,-500.0,0.00016183,2]
[399816786,1766699436950,-500.0,0.00016183,2]
[399816787,1766699436960,-500.0,0.00016183,2]
[399816788,1766699436970,-500.0,0.00016183,2]
[399816789,1766699436979,-500.0,0.00016183,2]
[399816790,1766699436989,-500.0,0.00016183,2]
[399816791,1766699436999,-378.15038662,0.00016183,2]
[399816792,1766699437009,-500.0,0.00016183,2]
[399816793,1766699437019,-500.18172396,0.00016183,2]
[399816794,1766699437028,-329.37103427,0.00016183,2]
[399816795,1766699437038,-506.42109494,0.00016183,2]
[399816796,1766699437048,-164.92711325,0.00016183,2]
[399816797,1766699437058,-168.70375844,0.00016183,2]
[399816798,1766699437067,-500.0,0.00016183,2]
[399816799,1766699437077,-483.31289544,0.00016183,2]
[399816800,1766699437086,-150.0,0.00016185,2]
[399816801,1766699437096,-1220.37,0.00016192,2]
[399816802,1766699437106,-150.0,0.00016192,2]
[399816803,1766699437115,-554.23,0.00016192,2]
[399816804,1766699437126,-301.19,0.00016192,2]
[399816805,1766699437136,-150.0,0.00016192,2]
[399816806,1766699437145,-300.0,0.00016192,2]
[399816807,1766699437155,-554.23,0.00016192,2]
[399816808,1766699437164,-1220.37,0.00016192,2]
[399816809,1766699437174,-150.0,0.00016192,2]
[399816810,1766699437407,-150.0,0.00016192,2]
[399816811,1766699437418,-554.23,0.00016192,2]
[399816812,1766699437428,-1220.37,0.00016192,2]
[399816813,1766699437438,-1220.37,0.00016192,2]
[399816814,1766699437448,-150.0,0.00016192,2]
[399816815,1766699437458,-1220.37,0.00016192,2]
[399816816,1766699437467,-150.0,0.00016192,2]
[399816817,1766699437477,-9468.8644553,0.00016193,2]
[399816818,1766699437487,-1863.66254373,0.00016198,2]
[399816819,1766699437496,-150.0,0.00016202,2]
[399816820,1766699437507,-150.0,0.00016206,2]
[399816821,1766699437517,-150.0,0.00016208,2]
[399816822,1766699437527,-150.0,0.00016217,2]
[399816823,1766699437536,-150.0,0.00016222,2]
[399816824,1766699437546,-150.0,0.00016226,2]
[399816825,1766699437556,-150.0,0.00016249,2]
[399816826,1766699437566,-150.0,0.00016252,2]
[399816827,1766699437575,-169.78,0.00016256,2]
[399816828,1766699437584,-150.0,0.00016258,2]
[399816829,1766699437594,-1000.0,0.0001626,2]
[399816830,1766699437604,-150.0,0.00016268,2]
[399816831,1766699437614,-342.0,0.00016268,2]
[399816832,1766699437623,-150.0,0.00016271,2]
[399816833,1766699437633,-1220.37,0.00016278,2]
[399816834,1766699437643,-150.0,0.00016279,2]
[399816835,1766699437654,-150.0,0.00016281,2]
[399816836,1766699437663,-150.0,0.00016298,2]
[399816837,1766699437672,-342.0,0.00016306,2]
[399816838,1766699437683,-150.0,0.00016307,2]
[399816839,1766699437693,-150.0,0.00016307,2]
[399816840,1766699437703,-150.0,0.00016307,2]
[399816841,1766699437712,-150.0,0.00016313,2]
[399816842,1766699437722,-25208.43937731,0.00016314,2]
[399816843,1766699437731,-150.0,0.00016316,2]
[399816844,1766699437741,-967.64677469,0.00016329,2]
[399816845,1766699437751,-342.0,0.0001633,2]
[399816846,1766699437760,-150.0,0.00016333,2]
[399816847,1766699437769,-342.0,0.00016334,2]
[399816848,1766699437779,-150.0,0.00016344,2]
[399816849,1766699437789,-150.0,0.00016345,2]
[399816850,1766699437798,-150.0,0.00016349,2]
[399816851,1766699437808,-150.0,0.00016349,2]
[399816852,1766699437818,-150.0,0.0001636,2]
[399816853,1766699437827,-152.02986796,0.00016361,2]
[399816854,1766699437838,-9468.8644553,0.0001637,2]
[399816855,1766699437852,-150.0,0.00016377,2]
[399816856,1766699437861,-150.0,0.0001638,2]
[399816857,1766699437871,-967.64677469,0.00016384,2]
[399816858,1766699437880,-2429.74,0.00016384,2]
[399816859,1766699437891,-150.0,0.00016389,2]
[399816860,1766699437901,-150.0,0.00016392,2]
[399816861,1766699437911,-150.0,0.00016392,2]
[399816862,1766699437923,-150.0,0.00016392,2]
[399816863,1766699437932,-555.40225183,0.00016394,2]
[399816864,1766699437942,-342.0,0.00016397,2]
[399816865,1766699437951,-150.0,0.00016398,2]
[399816866,1766699437961,-228.0,0.000164,2]
[399816867,1766699437971,-319.0,0.000164,2]
[399816868,1766699437981,-182.0,0.000164,2]
[399816869,1766699437990,-184.24951816,0.000164,2]
[399816870,1766699438000,-150.0,0.00016405,2]
[399816871,1766699438010,-150.0,0.00016409,2]
[399816872,1766699438020,-150.0,0.0001642,2]
[399816873,1766699438030,-150.0,0.0001642,2]
[399816874,1766699438039,-349.0,0.00016425,2]
[399816875,1766699438049,-151.0,0.00016435,2]
[399816876,1766699438059,-150.0,0.00016435,2]
[399816877,1766699438069,-500.0,0.00016438,2]
[399816878,1766699438080,-500.0,0.00016438,2]
[399816879,1766699438090,-500.0,0.00016438,2]
[399816880,1766699438100,-500.0,0.00016438,2]
[399816881,1766699438109,-500.0,0.00016438,2]
[399816882,1766699438119,-500.0,0.00016438,2]
[399816884,1766699438129,-500.0,0.00016438,2]
[399816886,1766699438139,-500.0,0.00016438,2]
[399816887,1766699438148,-500.0,0.00016438,2]
[399816888,1766699438158,-500.0,0.00016438,2]
[399816889,1766699438168,-500.0,0.00016438,2]
[399816890,1766699438177,-500.0,0.00016438,2]
[399816891,1766699438187,-500.0,0.00016438,2]
[399816892,1766699438196,-500.0,0.00016438,2]
[399816893,1766699438207,-500.0,0.00016438,2]
[399816894,1766699438216,-500.0,0.00016438,2]
[399816895,1766699438226,-500.0,0.00016438,2]
[399816896,1766699438235,-500.0,0.00016438,2]
[399816897,1766699438245,-500.0,0.00016438,2]
[399816898,1766699438254,-500.0,0.00016438,2]
[399816899,1766699438264,-500.0,0.00016438,2]
[399816900,1766699438274,-500.0,0.00016438,2]
[399816901,1766699438283,-500.0,0.00016438,2]
[399816902,1766699438293,-356.19143434,0.00016438,2]
[399816903,1766699438303,-500.0,0.00016438,2]
[399816904,1766699438313,-500.0,0.00016438,2]
[399816905,1766699438322,-500.0,0.00016438,2]
[399816906,1766699438332,-500.0,0.00016438,2]
[399816907,1766699438343,-500.0,0.00016438,2]
[399816908,1766699438354,-500.0,0.00016438,2]
[399816909,1766699438363,-500.0,0.00016438,2]
[399816910,1766699438373,-500.0,0.00016438,2]
[399816911,1766699438384,-500.0,0.00016438,2]
[399816912,1766699438394,-500.0,0.00016438,2]
[399816913,1766699438404,-500.0,0.00016438,2]
[399816914,1766699438415,-500.0,0.00016438,2]
[399816915,1766699438424,-500.0,0.00016438,2]
[399816916,1766699438436,-500.0,0.00016438,2]
[399816917,1766699438446,-500.0,0.00016438,2]
[399816918,1766699438456,-500.0,0.00016438,2]
[399816919,1766699438466,-500.0,0.00016438,2]
[399816920,1766699438476,-500.0,0.00016438,2]
[399816921,1766699438486,-500.0,0.00016438,2]
[399816922,1766699438496,-500.0,0.00016438,2]
[399816923,1766699438506,-500.0,0.00016438,2]
[399816924,1766699438516,-500.0,0.00016438,2]
[399816925,1766699438526,-500.0,0.00016438,2]
[399816926,1766699438537,-500.0,0.00016438,2]
[399816927,1766699438547,-500.0,0.00016438,2]
[399816928,1766699438557,-500.0,0.00016438,2]
[399816929,1766699438567,-500.0,0.00016438,2]
[399816930,1766699438578,-500.0,0.00016438,2]
[399816931,1766699438588,-500.0,0.00016438,2]
[399816932,1766699438598,-500.0,0.00016438,2]
[399816933,1766699438609,-500.0,0.00016438,2]
[399816934,1766699438618,-577.12382869,0.00016438,2]
[399816935,1766699438628,-967.64677469,0.00016438,2]
[399816936,1766699438639,-809.0,0.00016438,2]
[399816937,1766699438649,-716.0,0.00016438,2]
[399816938,1766699438659,-235.76832595,0.00016438,2]
[399816939,1766699438668,-150.0,0.00016441,2]
[399816940,1766699438678,-150.0,0.00016442,2]
[399816941,1766699438689,-150.0,0.0001645,2]
[399816942,1766699438699,-150.0,0.00016464,2]
[399816943,1766699438708,-150.0,0.00016474,2]
[399816944,1766699438719,-150.0,0.00016477,2]
[399816945,1766699438729,-150.0,0.00016477,2]
[399816946,1766699438738,-150.0,0.00016477,2]
[399816947,1766699438748,-342.0,0.00016479,2]
[399816948,1766699438758,-150.0,0.00016481,2]
[399816949,1766699438767,-150.0,0.00016491,2]
[399816950,1766699438778,-150.0,0.00016495,2]
[399816951,1766699438792,-1000.0,0.00016498,2]
[399816952,1766699438802,-150.0,0.00016501,2]
[399816953,1766699438812,-150.0,0.00016506,2]
[399816954,1766699438822,-25208.43937731,0.00016509,2]
[399816955,1766699438832,-342.0,0.00016511,2]
[399816956,1766699438842,-967.64677469,0.00016521,2]
[399816957,1766699438853,-150.0,0.00016527,2]
[399816958,1766699438863,-150.0,0.00016529,2]
[399816960,1766699438874,-150.0,0.00016533,2]
[399816962,1766699438884,-150.0,0.00016533,2]
[399816964,1766699438894,-150.0,0.00016538,2]
[399816966,1766699438905,-150.0,0.00016539,2]
[399816968,1766699438914,-9468.8644553,0.00016546,2]
[399816970,1766699438925,-150.0,0.00016548,2]
[399816972,1766699438935,-150.0,0.00016556,2]
[399816974,1766699438947,-150.0,0.00016562,2]
[399816976,1766699438957,-150.0,0.00016562,2]
[399816978,1766699438967,-150.0,0.00016562,2]
[399816979,1766699438978,-420.0,0.00016568,2]
[399816981,1766699438988,-150.0,0.0001657,2]
[399816983,1766699438999,-150.0,0.00016573,2]
[399816985,1766699439008,-967.64677469,0.00016575,2]
[399816987,1766699439018,-150.0,0.00016584,2]
[399816989,1766699439028,-226.38,0.00016584,2]
[399816991,1766699439038,-342.0,0.00016592,2]
[399816993,1766699439047,-150.0,0.00016594,2]
[399816995,1766699439057,-150.0,0.00016596,2]
[399816996,1766699439067,-150.0,0.00016602,2]
[399816998,1766699439078,-150.0,0.00016619,2]
[399817000,1766699439088,-150.0,0.00016622,2]
[399817002,1766699439098,-150.0,0.00016629,2]
[399817004,1766699439108,-1000.0,0.00016632,2]
[399817006,1766699439118,-150.0,0.00016632,2]
[399817008,1766699439128,-342.0,0.00016633,2]
[399817010,1766699439137,-150.0,0.00016634,2]
[399817012,1766699439151,-302.14899466,0.0001664,2]
[399817014,1766699439161,-150.0,0.00016647,2]
[399817016,1766699439171,-150.0,0.00016647,2]
[399817017,1766699439181,-150.0,0.00016647,2]
[399817019,1766699439191,-555.40225183,0.00016647,2]
[399817022,1766699439209,-1680.0,0.00016652,2]
[399817024,1766699439226,-967.64677469,0.00016658,2]
[399817025,1766699439244,-150.0,0.0001666,2]
[399817026,1766699439257,-5178.43814908,0.0001666,2]
[399817027,1766699439273,-150.0,0.00016665,2]
[399817028,1766699439288,-150.0,0.00016666,2]
[399817029,1766699439305,-150.0,0.00016673,2]
[399817030,1766699439321,-151.0,0.00016697,2]
[399817031,1766699439341,-595.37131296,0.00016697,2]
[399817032,1766699439356,-151.0,0.00016697,2]
[399817033,1766699439368,-150.0,0.00016698,2]
[399817034,1766699439385,-150.0,0.00016703,2]
[399817035,1766699439400,-150.0,0.00016703,2]
[399817036,1766699439416,-25208.43937731,0.00016705,2]
[399817037,1766699439432,-150.0,0.00016711,2]
[399817038,1766699439448,-967.64677469,0.00016712,2]
[399817039,1766699439465,-164.63,0.00016712,2]
[399817040,1766699439480,-150.0,0.00016717,2]
[399817042,1766699439497,-150.0,0.00016718,2]
[399817044,1766699439515,-9468.8644553,0.00016723,2]
[399817047,1766699439530,-150.0,0.00016725,2]
[399817049,1766699439544,-150.0,0.0001673,2]
[399817052,1766699439560,-665.6820002,0.00016731,2]
[399817054,1766699439575,-500.0,0.00016731,2]
[399817057,1766699439592,-1000.0,0.00016731,2]
[399817060,1766699439606,-500.0,0.00016731,2]
[399817062,1766699439621,-500.0,0.00016731,2]
[399817064,1766699439633,-226.54246888,0.00016731,2]
[399817067,1766699439646,-675.89091811,0.00016731,2]
[399817069,1766699439660,-1000.0,0.00016731,2]
[399817071,1766699439679,-1000.0,0.00016731,2]
[399817073,1766699439691,-722.04159557,0.00016731,2]
[399817076,1766699439703,-500.0,0.00016731,2]
[399817078,1766699439714,-711.71097103,0.00016731,2]
[399817080,1766699439728,-500.0,0.00016731,2]
[399817083,1766699439742,-500.0,0.00016731,2]
[399817085,1766699439758,-150.0,0.00016732,2]
[399817088,1766699439773,-659.62,0.0001674,2]
[399817090,1766699439785,-659.62,0.0001674,2]
[399817092,1766699439798,-659.62,0.0001674,2]
[399817095,1766699439811,-659.62,0.0001674,2]
[399817097,1766699439824,-659.62,0.0001674,2]
[399817099,1766699439838,-659.62,0.0001674,2]
[399817102,1766699439856,-659.62,0.0001674,2]
[399817104,1766699439884,-659.62,0.0001674,2]
[399817105,1766699439903,-659.62,0.0001674,2]
[399817106,1766699439920,-150.0,0.00016744,2]
[399817107,1766699439937,-150.0,0.00016757,2]
[399817108,1766699439952,-150.0,0.00016762,2]
[399817109,1766699439968,-150.0,0.00016763,2]
[399817110,1766699439984,-967.64677469,0.00016767,2]
[399817111,1766699440001,-1102.0,0.0001677,2]
[399817112,1766699440018,-150.0,0.00016774,2]
[399817113,1766699440034,-150.0,0.00016774,2]
[399817114,1766699440050,-150.0,0.0001679,2]
[399817115,1766699440065,-150.0,0.00016794,2]
[399817116,1766699440088,-1000.0,0.00016795,2]
[399817117,1766699440103,-1000.0,0.00016795,2]
[399817118,1766699440117,-1000.0,0.00016795,2]
[399817119,1766699440131,-1000.0,0.00016795,2]
[399817120,1766699440145,-1000.0,0.00016795,2]
[399817121,1766699440160,-1000.0,0.00016795,2]
[399817123,1766699440175,-1000.0,0.00016795,2]
[399817124,1766699440189,-1000.0,0.00016795,2]
[399817125,1766699440212,-1000.0,0.00016795,2]
[399817126,1766699440229,-1000.0,0.00016795,2]
[399817127,1766699440245,-347.511,0.00016795,2]
[399817128,1766699440263,-659.62,0.000168,2]
[399817129,1766699440278,-659.62,0.000168,2]
[399817130,1766699440294,-1000.0,0.000168,2]
[399817133,1766699440311,-150.0,0.00016803,2]
[399817134,1766699440327,-150.0,0.00016807,2]
[399817135,1766699440343,-1000.0,0.0001681,2]
[399817136,1766699440359,-1000.0,0.00016811,2]
[399817137,1766699440373,-1000.0,0.00016816,2]
[399817138,1766699440389,-150.0,0.00016816,2]
[399817139,1766699440404,-150.0,0.00016816,2]
[399817140,1766699440419,-1000.0,0.00016824,2]
[399817141,1766699440434,-150.0,0.00016826,2]
[399817142,1766699440448,-1000.0,0.00016827,2]
[399817143,1766699440463,-1000.0,0.00016832,2]
[399817144,1766699440478,-150.0,0.00016845,2]
[399817145,1766699440494,-150.0,0.00016849,2]
[399817146,1766699440508,-967.64677469,0.00016849,2]
[399817147,1766699440523,-150.0,0.00016852,2]
[399817148,1766699440536,-300.0,0.00016855,2]
[399817149,1766699440550,-150.0,0.00016856,2]
[399817150,1766699440564,-150.0,0.00016858,2]
[399817151,1766699440578,-150.0,0.00016859,2]
[399817152,1766699440591,-200.0,0.00016863,2]
[399817153,1766699440605,-200.0,0.00016864,2]
[399817154,1766699440618,-200.0,0.00016864,2]
[399817155,1766699440632,-150.0,0.00016865,2]
[399817156,1766699440645,-1000.0,0.0001687,2]
[399817157,1766699440658,-1000.0,0.00016873,2]
[399817158,1766699440672,-2000.0,0.00016875,2]
[399817159,1766699440686,-2000.0,0.00016875,2]
[399817160,1766699440699,-2000.0,0.00016875,2]
[399817161,1766699440712,-1000.0,0.00016881,2]
[399817162,1766699440725,-515.83487979,0.0001689,2]
[399817163,1766699440739,-150.0,0.0001689,2]
[399817165,1766699440753,-2580.25977977,0.00016893,2]
[399817166,1766699440766,-2580.25977977,0.00016894,2]
[399817167,1766699440780,-150.0,0.00016894,2]
[399817168,1766699440794,-168.792,0.00016895,2]
[399817169,1766699440807,-2508.155,0.00016895,2]
[399817170,1766699440821,-515.83487979,0.00016895,2]
[399817171,1766699440834,-2580.25977977,0.00016896,2]
[399817172,1766699440847,-200.45994766,0.00016896,2]
[399817173,1766699440861,-150.0,0.00016897,2]
[399817174,1766699440876,-2580.25977977,0.00016897,2]
[399817175,1766699440889,-2580.25977977,0.00016899,2]
[399817176,1766699440903,-10000.0,0.000169,2]
[399817177,1766699440917,-1926.43051864,0.000169,3]
[399817178,1766699440931,-555.40225183,0.000169,2]
[399817179,1766699440944,-170.28248417,0.000169,2]
[399817180,1766699440957,-9468.8644553,0.000169,2]
[399817181,1766699440971,-823.66477228,0.000169,2]
[399817182,1766699440984,-4551.54060658,0.000169,2]
[399817183,1766699440997,-2580.25977977,0.000169,2]
[399817184,1766699441010,-941.77043409,0.000169,2]
[399817185,1766699441025,-25208.43937731,0.000169,2]
[399817186,1766699441038,-12164.0,0.000169,2]
[399817187,1766699441051,-150.0,0.00016901,2]
[399817188,1766699441065,-967.64677469,0.00016904,2]
[399817189,1766699441079,-1000.0,0.00016908,2]
[399817190,1766699441093,-1000.0,0.00016914,2]
[399817191,1766699441105,-150.0,0.00016916,2]
[399817192,1766699441118,-150.0,0.00016921,2]
[399817193,1766699441130,-150.0,0.00016922,2]
[399817194,1766699441143,-150.0,0.00016932,2]
[399817195,1766699441156,-300.0,0.00016935,2]
[399817196,1766699441169,-150.0,0.0001694,2]
[399817197,1766699441182,-150.0,0.00016942,2]
[399817198,1766699441195,-150.0,0.00016954,2]
[399817199,1766699441208,-300.0,0.00016958,2]
[399817200,1766699441220,-1000.0,0.00016964,2]
[399817201,1766699441233,-150.0,0.00016966,2]
[399817202,1766699441246,-300.0,0.00016968,2]
[399817203,1766699441259,-908.68741303,0.0001697,2]
[399817204,1766699441272,-150.0,0.00016973,2]
[399817205,1766699441285,-150.0,0.00016973,2]
[399817206,1766699441298,-500.0,0.00016973,2]
[399817207,1766699441311,-150.0,0.00016973,2]
[399817208,1766699441324,-1000.0,0.00016983,2]
[399817209,1766699441336,-967.64677469,0.00016986,2]
[399817210,1766699441350,-150.0,0.00016986,2]
[399817211,1766699441363,-150.0,0.00016986,2]
[399817212,1766699441377,-150.0,0.00016986,2]
[399817213,1766699441389,-151.3562696,0.00016986,2]
[399817214,1766699441403,-150.0,0.00016986,2]
[399817215,1766699441416,-150.0,0.00016986,2]
[399817216,1766699441429,-150.0,0.00016986,2]
[399817217,1766699441441,-150.0,0.00016986,2]
[399817218,1766699441454,-150.0,0.00016986,2]
[399817219,1766699441467,-150.0,0.00016986,2]
[399817220,1766699441480,-150.0,0.00016986,2]
[399817221,1766699441492,-150.0,0.00016986,2]
[399817222,1766699441505,-141858.7183179,0.0001699,2]
[399817223,1766699441519,-3835.978237,0.0001699,2]
[399817224,1766699441531,-7627.7202506,0.0001699,2]
[399817225,1766699441544,-420.3795148,0.0001699,2]
[399817226,1766699441557,-519786.6000951,0.0001699,2]
[399817227,1766699441571,-214.0,0.00016993,2]
[399817228,1766699441583,-151.0,0.00016997,2]
[399817229,1766699441596,-300.0,0.00016999,2]
[399817230,1766699441609,-431.79735166,0.00016999,2]
[399817231,1766699441623,-334.58918112,0.00016999,2]
[399817232,1766699441636,-300.0,0.00016999,2]
[399817233,1766699441651,-300.0,0.00016999,2]
[399817234,1766699441666,-362138.24703738,0.00017,2]
[399817235,1766699441682,-50835.45081754,0.00017,2]
[399817236,1766699442416,-4900.2279375,0.00017,2]
[399817237,1766699442429,-4723.49551207,0.00017,2]
[399817238,1766699442462,-2075.77743633,0.00017,2]
[399817239,1766699442474,-1432.49858027,0.00017,2]
[399817240,1766699442600,-7103.92039378,0.00017,2]
[399817241,1766699442612,-4911.49051634,0.00017,2]
[399817251,1766699443799,-261.039,0.00015392,2]
[399817252,1766699443811,-987.59774991,0.00015392,2]
[399817253,1766699443823,-122.66869113,0.00015392,2]
[399817254,1766699443833,-1000.0,0.0001681,2]
[399817255,1766699443844,-1000.0,0.0001681,2]
[399817256,1766699443856,-15.56208509,0.0001681,2]
[399817257,1766699443869,-984.43791491,0.0001681,2]
[399817258,1766699443879,-1000.0,0.00016864,2]
[399817259,1766699443891,-1000.0,0.00016864,2]
[399817260,1766699443901,-1000.0,0.00016864,2]
[399817261,1766699443911,-1000.0,0.00016864,2]
[399817262,1766699443923,-1000.0,0.00016864,2]
[399817263,1766699443932,-916.272,0.00016864,2]
[399817265,1766699443942,-2000.0,0.00016875,2]
[399817267,1766699443951,-2000.0,0.00016875,2]
[399817268,1766699443962,-1118.13890359,0.00016875,2]
[399817269,1766699443979,-881.86109641,0.00016875,2]
[399817270,1766699443989,-1000.0,0.00016875,2]
[399817271,1766699443999,-515.83487979,0.000169,2]
[399817273,1766699444009,-45906.39987517,0.00017,2]
[399817274,1766699444298,-25897.12525275,0.00017,2]
[399817275,1766699444320,-7073.51683908,0.00017,2]
[399817276,1766699444751,-1371.30544104,0.00015644,2]
[399817277,1766699444762,-321541.04571033,0.00017,2]
[399817278,1766699444774,-417995.86630646,0.00017,2]
[399817279,1766699444786,-449.495,0.00017,2]
[399817280,1766699444797,-2877.10776756,0.00017,2]
[399817281,1766699444809,-393.75864082,0.00017,2]
[399817282,1766699444821,-401.780011,0.00017,2]
[399817283,1766699444832,-290.80846488,0.00017,2]
[399817284,1766699445108,-573.41328254,0.00017,2]
[399817285,1766699445131,-4892138.20098239,0.00017,2]
[399817286,1766699445179,-1872.04,0.00017,2]
[399817287,1766699445594,-231.64,0.00016192,2]
[399817288,1766699445604,-1012.09843092,0.00017,2]
[399817289,1766699445616,-4089.02672651,0.00017,2]
[399817293,1766699446512,-1371.30544104,0.00015895,2]
[399817294,1766699446523,-151.0,0.00016231,2]
[399817295,1766699446533,-153416.30632565,0.00017,2]
[399817296,1766699446546,-23721.38823331,0.00017,2]
[399817297,1766699446736,-491.52097155,0.00017,2]
[399817303,1766699662982,150.0,0.000325,120]
[399817305,1766700170901,300.0,0.0003287,120]
[399817306,1766700191052,178.07,7.412e-05,2]
[399817307,1766700191233,178.07,0.00011118,2]
[399817310,1766700631437,-1000.0,0.00013699,2]
[399817311,1766700631448,-810.68186139,0.00014576,2]
[399817312,1766700631552,-1249.18479842,0.00014576,2]
[399817313,1766700631565,-1180.13334019,0.00014576,2]
[399817314,1766700631575,-178.07,0.00014823,2]
[399817315,1766700631586,-405.86236393,0.0001485,2]
[399817316,1766700631598,-680.07227008,0.0001485,2]
[399817317,1766700631610,-277.20013625,0.0001485,2]
[399817318,1766700631638,-136.86522974,0.0001485,2]
[399817319,1766700631647,-134.68468381,0.00014968,2]
[399817320,1766700631659,-106.14295882,0.00014968,2]
[399817321,1766700631669,-1145.23431276,0.00015067,2]
[399817322,1766700631681,-54.76568724,0.00015067,2]
[399817323,1766700631691,-195.0,0.00015068,2]
[399817324,1766700631702,-600.0,0.00015068,2]
[399817325,1766700631712,-214.15037368,0.00015088,2]